[Event "Late-Titled-Tuesday-Blitz-September-19-2023"]
[Site "Chess.com"]
[Date "2023.09.19"]
[Round "5"]
[White "sergiochess83"]
[Black "Alphafischer2019"]
[Result "1-0"]
[WhiteElo "2901"]
[BlackElo "2619"]
[TimeControl "180+1"]
[EndTime "14:53:23 PDT"]
[Termination "sergiochess83 won by checkmate"]

1. d4 {[%clk 0:02:36.5]} 1... Nf6 {[%clk 0:02:59.8]} 2. c4 {[%clk 0:02:34.9]}
2... b6 {[%clk 0:03:00]} 3. f3 {[%clk 0:02:33.9]} 3... Nc6 {[%clk 0:02:59.5]} 4.
e4 {[%clk 0:02:31.2]} 4... e5 {[%clk 0:03:00.1]} 5. dxe5 {[%clk 0:02:20.3]} 5...
Nxe5 {[%clk 0:03:00.3]} 6. Be3 {[%clk 0:02:14.5]} 6... Ng6 {[%clk 0:02:56.9]} 7.
Nc3 {[%clk 0:02:13.2]} 7... Bc5 {[%clk 0:02:55.3]} 8. Qd2 {[%clk 0:02:12.2]}
8... O-O {[%clk 0:02:52.2]} 9. O-O-O {[%clk 0:02:09.7]} 9... Bxe3 {[%clk
0:02:49.9]} 10. Qxe3 {[%clk 0:02:09.1]} 10... d6 {[%clk 0:02:45.7]} 11. Nge2
{[%clk 0:02:04.6]} 11... Re8 {[%clk 0:02:40.8]} 12. Nd4 {[%clk 0:01:59.6]} 12...
Bb7 {[%clk 0:02:39.5]} 13. Qd2 {[%clk 0:01:56.9]} 13... a6 {[%clk 0:02:34.8]}
14. h4 {[%clk 0:01:54.1]} 14... Ne5 {[%clk 0:02:29.4]} 15. Kb1 {[%clk
0:01:45.8]} 15... Nh5 {[%clk 0:01:52.4]} 16. Qg5 {[%clk 0:00:47.1]} 16... Qxg5
{[%clk 0:01:45.2]} 17. hxg5 {[%clk 0:00:48]} 17... Ng3 {[%clk 0:01:45.2]} 18.
Rh3 {[%clk 0:00:48.2]} 18... Nxf1 {[%clk 0:01:35.4]} 19. Rxf1 {[%clk 0:00:49.1]}
19... Nxc4 {[%clk 0:01:22.7]} 20. Rfh1 {[%clk 0:00:49.1]} 20... Kf8 {[%clk
0:01:21.7]} 21. Rxh7 {[%clk 0:00:47.7]} 21... g6 {[%clk 0:01:22.3]} 22. Nd5
{[%clk 0:00:30.5]} 22... Bxd5 {[%clk 0:01:21.4]} 23. exd5 {[%clk 0:00:31.4]}
23... Ke7 {[%clk 0:00:30.9]} 24. Nc6+ {[%clk 0:00:26.3]} 24... Kd7 {[%clk
0:00:31.5]} 25. Rxf7+ {[%clk 0:00:26.2]} 25... Kc8 {[%clk 0:00:32.2]} 26. Rhh7
{[%clk 0:00:25]} 26... Re1+ {[%clk 0:00:28.9]} 27. Kc2 {[%clk 0:00:24.5]} 27...
Ra7 {[%clk 0:00:28.2]} 28. Rf8+ {[%clk 0:00:22]} 28... Kb7 {[%clk 0:00:27.8]}
29. Rb8# {[%clk 0:00:21.7]} 1-0

[Event "Late-Titled-Tuesday-Blitz-September-19-2023"]
[Site "Chess.com"]
[Date "2023.09.19"]
[Round "5"]
[White "santosalberto1987"]
[Black "farzadbfd"]
[Result "0-1"]
[WhiteElo "2509"]
[BlackElo "2693"]
[TimeControl "180+1"]
[EndTime "14:53:23 PDT"]
[Termination "farzadbfd won by resignation"]

1. e4 {[%clk 0:03:00.9]} 1... e5 {[%clk 0:02:59.7]} 2. Nf3 {[%clk 0:03:01]} 2...
Nc6 {[%clk 0:03:00.1]} 3. Bc4 {[%clk 0:03:01.2]} 3... Bc5 {[%clk 0:02:59.9]} 4.
c3 {[%clk 0:03:01.2]} 4... Nf6 {[%clk 0:03:00.2]} 5. d3 {[%clk 0:03:01.6]} 5...
a6 {[%clk 0:03:00.1]} 6. Nbd2 {[%clk 0:02:59]} 6... O-O {[%clk 0:02:59.5]} 7.
O-O {[%clk 0:02:58.6]} 7... d6 {[%clk 0:02:58.5]} 8. Bb3 {[%clk 0:02:57.2]} 8...
h6 {[%clk 0:02:57.5]} 9. h3 {[%clk 0:02:56.7]} 9... Be6 {[%clk 0:02:58]} 10. Bc2
{[%clk 0:02:56.5]} 10... d5 {[%clk 0:02:57.1]} 11. Re1 {[%clk 0:02:51.2]} 11...
Re8 {[%clk 0:02:57.3]} 12. Qe2 {[%clk 0:02:46.9]} 12... Bf8 {[%clk 0:02:56.1]}
13. Nf1 {[%clk 0:02:46.9]} 13... g6 {[%clk 0:02:51.9]} 14. Ng3 {[%clk
0:02:39.2]} 14... Bg7 {[%clk 0:02:51.7]} 15. a3 {[%clk 0:02:23.7]} 15... Qd7
{[%clk 0:02:50.7]} 16. b4 {[%clk 0:02:23.6]} 16... b5 {[%clk 0:02:44.1]} 17. Bb2
{[%clk 0:02:14.6]} 17... a5 {[%clk 0:02:34.4]} 18. a4 {[%clk 0:01:48.7]} 18...
dxe4 {[%clk 0:02:28.5]} 19. axb5 {[%clk 0:01:32.4]} 19... exf3 {[%clk
0:02:23.2]} 20. bxc6 {[%clk 0:01:32.2]} 20... Qxc6 {[%clk 0:02:21.3]} 21. Qxf3
{[%clk 0:01:28.4]} 21... Bd5 {[%clk 0:02:02.7]} 22. Ne4 {[%clk 0:01:28.2]} 22...
axb4 {[%clk 0:02:01.1]} 23. c4 {[%clk 0:01:28.3]} 23... Bxe4 {[%clk 0:01:57.1]}
24. dxe4 {[%clk 0:01:28.3]} 24... Rxa1 {[%clk 0:01:48]} 25. Rxa1 {[%clk
0:01:26.7]} 25... Qxc4 {[%clk 0:01:48.6]} 26. Bb3 {[%clk 0:01:26.8]} 26... Qxe4
{[%clk 0:01:48.2]} 27. Qxe4 {[%clk 0:01:25.6]} 27... Nxe4 {[%clk 0:01:48.2]} 28.
Rc1 {[%clk 0:01:26.3]} 28... Rc8 {[%clk 0:01:17.6]} 29. Rc4 {[%clk 0:00:48.2]}
29... Nd2 {[%clk 0:01:17.3]} 30. Rxb4 {[%clk 0:00:48.4]} 30... Nxb3 {[%clk
0:01:17.9]} 31. Rxb3 {[%clk 0:00:49.3]} 31... c5 {[%clk 0:01:16.9]} 32. Rc3
{[%clk 0:00:46.9]} 32... e4 {[%clk 0:01:13.8]} 33. Rc2 {[%clk 0:00:47.3]} 33...
Bxb2 {[%clk 0:01:12.7]} 34. Rxb2 {[%clk 0:00:48.2]} 34... c4 {[%clk 0:01:09.8]}
35. Kf1 {[%clk 0:00:46.6]} 35... c3 {[%clk 0:01:09]} 36. Rc2 {[%clk 0:00:46.7]}
36... f5 {[%clk 0:01:08.8]} 37. Ke2 {[%clk 0:00:46.3]} 37... Kf7 {[%clk
0:01:09.3]} 38. Ke3 {[%clk 0:00:46.5]} 38... Rc4 {[%clk 0:01:07.6]} 39. g4
{[%clk 0:00:43.6]} 39... Kf6 {[%clk 0:01:06.1]} 40. f3 {[%clk 0:00:43.8]} 40...
exf3 {[%clk 0:01:05.4]} 41. Kxf3 {[%clk 0:00:44.7]} 41... fxg4+ {[%clk
0:01:05.5]} 42. hxg4 {[%clk 0:00:45.6]} 42... Kg5 {[%clk 0:01:05.8]} 43. Ke3
{[%clk 0:00:40.6]} 43... Kxg4 {[%clk 0:01:04.8]} 44. Kd3 {[%clk 0:00:41.1]}
44... Rc6 {[%clk 0:01:04.4]} 45. Rg2+ {[%clk 0:00:41]} 45... Kf5 {[%clk
0:01:03.2]} 46. Kc2 {[%clk 0:00:40.7]} 46... h5 {[%clk 0:01:02.7]} 47. Rf2+
{[%clk 0:00:40]} 47... Kg5 {[%clk 0:01:02.7]} 48. Rg2+ {[%clk 0:00:40.4]} 48...
Kh6 {[%clk 0:01:02.8]} 0-1

[Event "Late-Titled-Tuesday-Blitz-September-19-2023"]
[Site "Chess.com"]
[Date "2023.09.19"]
[Round "5"]
[White "krzyzan94"]
[Black "filipluczak05"]
[Result "1-0"]
[WhiteElo "2798"]
[BlackElo "2553"]
[TimeControl "180+1"]
[EndTime "14:53:25 PDT"]
[Termination "krzyzan94 won by checkmate"]

1. Nf3 {[%clk 0:02:59.9]} 1... g6 {[%clk 0:02:59.9]} 2. g3 {[%clk 0:02:56.7]}
2... Bg7 {[%clk 0:03:00.3]} 3. d4 {[%clk 0:02:55.5]} 3... c5 {[%clk 0:02:55]} 4.
Bg2 {[%clk 0:02:54.3]} 4... cxd4 {[%clk 0:02:50.7]} 5. Nxd4 {[%clk 0:02:55.2]}
5... Nc6 {[%clk 0:02:48.3]} 6. Nb3 {[%clk 0:02:54.8]} 6... Nf6 {[%clk
0:02:47.5]} 7. c4 {[%clk 0:02:51.3]} 7... O-O {[%clk 0:02:46.9]} 8. O-O {[%clk
0:02:50.2]} 8... d6 {[%clk 0:02:46.9]} 9. Nc3 {[%clk 0:02:50.1]} 9... Be6 {[%clk
0:02:45.7]} 10. Nd5 {[%clk 0:02:42.5]} 10... Bxd5 {[%clk 0:02:44.5]} 11. cxd5
{[%clk 0:02:42.7]} 11... Ne5 {[%clk 0:02:44.6]} 12. Nd4 {[%clk 0:02:38.1]} 12...
Rc8 {[%clk 0:02:43.7]} 13. Bf4 {[%clk 0:02:34.2]} 13... Nh5 {[%clk 0:02:35]} 14.
Bc1 {[%clk 0:02:06.8]} 14... Qb6 {[%clk 0:02:33.9]} 15. e3 {[%clk 0:01:59.5]}
15... Nf6 {[%clk 0:02:28.4]} 16. a4 {[%clk 0:01:59.4]} 16... a6 {[%clk
0:02:24.8]} 17. a5 {[%clk 0:01:58.1]} 17... Qc5 {[%clk 0:02:11.9]} 18. Bd2
{[%clk 0:01:37.2]} 18... Nfd7 {[%clk 0:01:31.7]} 19. Rc1 {[%clk 0:01:32.3]}
19... Qa7 {[%clk 0:01:30.9]} 20. Bc3 {[%clk 0:01:21.7]} 20... Nc5 {[%clk
0:01:23.8]} 21. Rc2 {[%clk 0:01:17.6]} 21... b5 {[%clk 0:01:12.6]} 22. Nc6
{[%clk 0:01:11.8]} 22... Nxc6 {[%clk 0:01:10.7]} 23. Bxg7 {[%clk 0:01:12.7]}
23... Nb4 {[%clk 0:01:03]} 24. Bxf8 {[%clk 0:01:04.6]} 24... Nxc2 {[%clk
0:01:03]} 25. Bh6 {[%clk 0:01:02.5]} 25... Nb3 {[%clk 0:00:51.7]} 26. Qd3 {[%clk
0:00:41.1]} 26... Nxa5 {[%clk 0:00:49.4]} 27. Rc1 {[%clk 0:00:38.7]} 27... Qc7
{[%clk 0:00:48.4]} 28. Be4 {[%clk 0:00:33.7]} 28... Nb4 {[%clk 0:00:24.3]} 29.
Rxc7 {[%clk 0:00:32.6]} 29... Rxc7 {[%clk 0:00:25.2]} 30. Qd4 {[%clk 0:00:31.3]}
30... Rc1+ {[%clk 0:00:20.9]} 31. Kg2 {[%clk 0:00:31.5]} 31... Na2 {[%clk
0:00:18.7]} 32. Qg7# {[%clk 0:00:31.1]} 1-0

[Event "Late-Titled-Tuesday-Blitz-September-19-2023"]
[Site "Chess.com"]
[Date "2023.09.19"]
[Round "5"]
[White "greekplayer1"]
[Black "WPWPWP-2015"]
[Result "0-1"]
[WhiteElo "2700"]
[BlackElo "2540"]
[TimeControl "180+1"]
[EndTime "14:53:26 PDT"]
[Termination "WPWPWP-2015 won by checkmate"]

1. e4 {[%clk 0:02:32.5]} 1... e5 {[%clk 0:02:59.3]} 2. Nc3 {[%clk 0:02:30.9]}
2... Nf6 {[%clk 0:02:58.9]} 3. d4 {[%clk 0:02:30.8]} 3... exd4 {[%clk
0:02:56.3]} 4. Qxd4 {[%clk 0:02:31.7]} 4... Nc6 {[%clk 0:02:56.2]} 5. Qd3 {[%clk
0:02:28.7]} 5... d6 {[%clk 0:02:51.6]} 6. Bg5 {[%clk 0:02:14.3]} 6... Be7 {[%clk
0:02:50.6]} 7. h4 {[%clk 0:02:13.8]} 7... Be6 {[%clk 0:02:43.4]} 8. f3 {[%clk
0:02:11.9]} 8... h6 {[%clk 0:02:42]} 9. Bd2 {[%clk 0:02:07.2]} 9... Nh5 {[%clk
0:02:37.4]} 10. O-O-O {[%clk 0:02:02.1]} 10... Ng3 {[%clk 0:02:24.3]} 11. Rh2
{[%clk 0:02:01.1]} 11... Bxh4 {[%clk 0:02:21.4]} 12. Nge2 {[%clk 0:01:58]} 12...
Nxf1 {[%clk 0:01:54.9]} 13. Rxf1 {[%clk 0:01:55.8]} 13... Ne5 {[%clk 0:01:38.2]}
14. Qd4 {[%clk 0:01:50]} 14... Bf6 {[%clk 0:01:36.1]} 15. Qf2 {[%clk 0:01:20.4]}
15... c6 {[%clk 0:01:30.4]} 16. Nf4 {[%clk 0:01:13.9]} 16... b5 {[%clk
0:01:26.2]} 17. Nh5 {[%clk 0:01:13.1]} 17... b4 {[%clk 0:01:23.4]} 18. Ne2
{[%clk 0:01:13.1]} 18... Nc4 {[%clk 0:01:15.1]} 19. c3 {[%clk 0:01:01.8]} 19...
Nxd2 {[%clk 0:01:05.3]} 20. Kxd2 {[%clk 0:01:02.7]} 20... bxc3+ {[%clk
0:01:01.6]} 21. Nxc3 {[%clk 0:00:59.6]} 21... Rb8 {[%clk 0:00:54.2]} 22. b3
{[%clk 0:00:53.7]} 22... O-O {[%clk 0:00:37.8]} 23. Nxf6+ {[%clk 0:00:52.8]}
23... Qxf6 {[%clk 0:00:37.3]} 24. Kc2 {[%clk 0:00:53.1]} 24... d5 {[%clk
0:00:36.3]} 25. Qc5 {[%clk 0:00:51.5]} 25... d4 {[%clk 0:00:32.7]} 26. Ne2
{[%clk 0:00:49.4]} 26... Rfd8 {[%clk 0:00:30.8]} 27. Rd1 {[%clk 0:00:48.3]}
27... d3+ {[%clk 0:00:16.5]} 28. Rxd3 {[%clk 0:00:47.7]} 28... Rxd3 {[%clk
0:00:10.8]} 29. Kxd3 {[%clk 0:00:48.6]} 29... Qb2 {[%clk 0:00:09.6]} 30. Nc3
{[%clk 0:00:42.2]} 30... Rd8+ {[%clk 0:00:08.6]} 31. Ke3 {[%clk 0:00:40.9]}
31... Qd2# {[%clk 0:00:08.4]} 0-1

[Event "Late-Titled-Tuesday-Blitz-September-19-2023"]
[Site "Chess.com"]
[Date "2023.09.19"]
[Round "5"]
[White "BeanScreen"]
[Black "amanmuhammethommadov"]
[Result "0-1"]
[WhiteElo "2710"]
[BlackElo "2576"]
[TimeControl "180+1"]
[EndTime "14:53:27 PDT"]
[Termination "amanmuhammethommadov won by resignation"]

1. e4 {[%clk 0:02:58.9]} 1... c5 {[%clk 0:03:00.2]} 2. c3 {[%clk 0:02:58.8]}
2... Nf6 {[%clk 0:03:00.3]} 3. e5 {[%clk 0:02:58.6]} 3... Nd5 {[%clk 0:03:00.9]}
4. Nf3 {[%clk 0:02:58.6]} 4... Nc6 {[%clk 0:03:01.3]} 5. Bc4 {[%clk 0:02:58.3]}
5... Nb6 {[%clk 0:03:01.7]} 6. Bb3 {[%clk 0:02:58.5]} 6... d6 {[%clk 0:03:02.1]}
7. exd6 {[%clk 0:02:58.3]} 7... Qxd6 {[%clk 0:03:03]} 8. O-O {[%clk 0:02:57.7]}
8... e6 {[%clk 0:03:03.4]} 9. d4 {[%clk 0:02:57.4]} 9... cxd4 {[%clk 0:03:04.3]}
10. cxd4 {[%clk 0:02:57.4]} 10... Be7 {[%clk 0:03:04.5]} 11. Nc3 {[%clk
0:02:55.8]} 11... O-O {[%clk 0:03:04.7]} 12. Re1 {[%clk 0:02:53.1]} 12... Qd8
{[%clk 0:02:54.7]} 13. Bc2 {[%clk 0:02:49.4]} 13... Bf6 {[%clk 0:02:51.2]} 14.
Qd3 {[%clk 0:02:41.7]} 14... g6 {[%clk 0:02:49.7]} 15. Bh6 {[%clk 0:02:30.8]}
15... Nb4 {[%clk 0:02:41.6]} 16. Qd2 {[%clk 0:02:31.1]} 16... Nxc2 {[%clk
0:02:40.3]} 17. Qxc2 {[%clk 0:02:32]} 17... Re8 {[%clk 0:02:40.5]} 18. Rad1
{[%clk 0:02:29.7]} 18... Qc7 {[%clk 0:02:28.4]} 19. d5 {[%clk 0:02:19.4]} 19...
Bd7 {[%clk 0:02:26.8]} 20. Qc1 {[%clk 0:01:59.1]} 20... exd5 {[%clk 0:02:11.5]}
21. Ne4 {[%clk 0:01:58.2]} 21... Qd8 {[%clk 0:02:01.8]} 22. Nxf6+ {[%clk
0:01:58.2]} 22... Qxf6 {[%clk 0:02:02.7]} 23. Be3 {[%clk 0:01:58.4]} 23... Rac8
{[%clk 0:01:57.7]} 24. Qd2 {[%clk 0:01:54.9]} 24... Nc4 {[%clk 0:01:51.7]} 25.
Qxd5 {[%clk 0:01:51.7]} 25... Nxe3 {[%clk 0:01:51]} 26. Rxe3 {[%clk 0:01:07.5]}
26... Rxe3 {[%clk 0:01:31.5]} 27. fxe3 {[%clk 0:01:08.4]} 27... Bc6 {[%clk
0:01:20.5]} 28. Qd4 {[%clk 0:01:05.4]} 28... Qe6 {[%clk 0:01:19.1]} 29. Qxa7
{[%clk 0:00:55.4]} 29... Bxf3 {[%clk 0:01:00.1]} 30. gxf3 {[%clk 0:00:56.3]}
30... b6 {[%clk 0:00:59.1]} 31. Qa3 {[%clk 0:00:52.9]} 31... Rc5 {[%clk
0:00:59.2]} 32. f4 {[%clk 0:00:46.9]} 32... Qg4+ {[%clk 0:00:57.5]} 33. Kf2
{[%clk 0:00:43.6]} 33... Qxd1 {[%clk 0:00:56.8]} 34. f5 {[%clk 0:00:33.2]} 34...
Rc2+ {[%clk 0:00:55.6]} 35. Kg3 {[%clk 0:00:33.5]} 35... Qg1+ {[%clk 0:00:51.3]}
36. Kf3 {[%clk 0:00:31.9]} 36... Qf2+ {[%clk 0:00:50.6]} 37. Ke4 {[%clk
0:00:32]} 37... Qxf5+ {[%clk 0:00:50.7]} 38. Kd4 {[%clk 0:00:31.9]} 38... Qc5+
{[%clk 0:00:47.2]} 39. Qxc5 {[%clk 0:00:28.9]} 39... bxc5+ {[%clk 0:00:48.1]}
40. Kd5 {[%clk 0:00:27.8]} 40... Rxb2 {[%clk 0:00:48.4]} 0-1

[Event "Late-Titled-Tuesday-Blitz-September-19-2023"]
[Site "Chess.com"]
[Date "2023.09.19"]
[Round "5"]
[White "Bala-Afiada"]
[Black "expii"]
[Result "0-1"]
[WhiteElo "1955"]
[BlackElo "2272"]
[TimeControl "180+1"]
[EndTime "14:53:48 PDT"]
[Termination "expii won by resignation"]

1. d4 {[%clk 0:02:30.4]} 1... Nf6 {[%clk 0:02:57.7]} 2. c4 {[%clk 0:02:29.8]}
2... d6 {[%clk 0:02:56.9]} 3. Nc3 {[%clk 0:02:29.2]} 3... g6 {[%clk 0:02:56.8]}
4. e4 {[%clk 0:02:28.7]} 4... Bg7 {[%clk 0:02:56.4]} 5. Nf3 {[%clk 0:02:29.3]}
5... O-O {[%clk 0:02:54.1]} 6. Be2 {[%clk 0:02:29.9]} 6... Bg4 {[%clk
0:02:49.5]} 7. Be3 {[%clk 0:02:29.7]} 7... Nc6 {[%clk 0:02:46.5]} 8. Ng1 {[%clk
0:02:29.4]} 8... Bxe2 {[%clk 0:02:45.1]} 9. Ngxe2 {[%clk 0:02:30.3]} 9... e5
{[%clk 0:02:43.6]} 10. d5 {[%clk 0:02:29.8]} 10... Ne7 {[%clk 0:02:40.9]} 11. b4
{[%clk 0:02:25.9]} 11... Nd7 {[%clk 0:02:39.2]} 12. c5 {[%clk 0:02:00.9]} 12...
f5 {[%clk 0:02:36.8]} 13. f3 {[%clk 0:02:00.6]} 13... f4 {[%clk 0:02:30.2]} 14.
Bf2 {[%clk 0:02:00.7]} 14... Nf6 {[%clk 0:02:25.3]} 15. cxd6 {[%clk 0:01:51.7]}
15... cxd6 {[%clk 0:02:24.1]} 16. Nb5 {[%clk 0:01:49.2]} 16... Qd7 {[%clk
0:02:20.6]} 17. Qd3 {[%clk 0:01:18]} 17... a6 {[%clk 0:01:54.5]} 18. Nbc3 {[%clk
0:01:10]} 18... b5 {[%clk 0:01:52.2]} 19. O-O {[%clk 0:00:58.2]} 19... Rac8
{[%clk 0:01:31.8]} 20. Rfc1 {[%clk 0:00:54.9]} 20... Rc4 {[%clk 0:01:22.4]} 21.
a4 {[%clk 0:00:51.2]} 21... Rfc8 {[%clk 0:01:20.1]} 22. axb5 {[%clk 0:00:49.9]}
22... axb5 {[%clk 0:01:21]} 23. Ra7 {[%clk 0:00:38.8]} 23... R8c7 {[%clk
0:01:13.5]} 24. Rca1 {[%clk 0:00:14.1]} 24... Ne8 {[%clk 0:00:51.6]} 25. Rxc7
{[%clk 0:00:08.3]} 25... Nxc7 {[%clk 0:00:52.5]} 26. Ra7 {[%clk 0:00:07.9]}
26... Rxb4 {[%clk 0:00:38.6]} 27. Bb6 {[%clk 0:00:05.3]} 27... Rc4 {[%clk
0:00:29.3]} 28. Nxb5 {[%clk 0:00:04.4]} 28... Qxb5 {[%clk 0:00:26.5]} 29. Rxc7
{[%clk 0:00:04.1]} 29... Qxb6+ {[%clk 0:00:26.1]} 30. Kf1 {[%clk 0:00:02.7]}
30... Qxc7 {[%clk 0:00:25.2]} 0-1

[Event "Late-Titled-Tuesday-Blitz-September-19-2023"]
[Site "Chess.com"]
[Date "2023.09.19"]
[Round "5"]
[White "sebastianmarinp"]
[Black "Nf3c5"]
[Result "0-1"]
[WhiteElo "2406"]
[BlackElo "2544"]
[TimeControl "180+1"]
[EndTime "14:53:51 PDT"]
[Termination "Nf3c5 won on time"]

1. d4 {[%clk 0:03:00.9]} 1... Nf6 {[%clk 0:02:58.7]} 2. c4 {[%clk 0:03:00.1]}
2... g6 {[%clk 0:02:56.8]} 3. Nc3 {[%clk 0:02:58.3]} 3... Bg7 {[%clk 0:02:55]}
4. e4 {[%clk 0:02:58.4]} 4... d6 {[%clk 0:02:55.4]} 5. g3 {[%clk 0:02:53.5]}
5... O-O {[%clk 0:02:56.3]} 6. Bg2 {[%clk 0:02:53.5]} 6... Nbd7 {[%clk 0:02:53]}
7. Nge2 {[%clk 0:02:53]} 7... e5 {[%clk 0:02:46.7]} 8. O-O {[%clk 0:02:51.6]}
8... c6 {[%clk 0:02:43.4]} 9. h3 {[%clk 0:02:47.7]} 9... a6 {[%clk 0:02:32.4]}
10. Be3 {[%clk 0:02:32.6]} 10... b5 {[%clk 0:02:19]} 11. c5 {[%clk 0:02:18.3]}
11... dxc5 {[%clk 0:02:01.7]} 12. dxc5 {[%clk 0:01:58.1]} 12... Qe7 {[%clk
0:01:45.1]} 13. b4 {[%clk 0:01:56.3]} 13... a5 {[%clk 0:01:43]} 14. a3 {[%clk
0:01:55.9]} 14... Re8 {[%clk 0:01:38.4]} 15. Qd6 {[%clk 0:01:44.6]} 15... Qxd6
{[%clk 0:01:17]} 16. cxd6 {[%clk 0:01:45.5]} 16... Nf8 {[%clk 0:01:16.7]} 17.
Bb6 {[%clk 0:01:25.3]} 17... a4 {[%clk 0:01:12.9]} 18. Rac1 {[%clk 0:01:06.9]}
18... Be6 {[%clk 0:01:12.2]} 19. Rfd1 {[%clk 0:00:56.1]} 19... N6d7 {[%clk
0:01:10.2]} 20. Be3 {[%clk 0:00:45.7]} 20... Bb3 {[%clk 0:01:07]} 21. Rd2 {[%clk
0:00:43.6]} 21... Ne6 {[%clk 0:01:06.4]} 22. f4 {[%clk 0:00:31]} 22... Rac8
{[%clk 0:00:39.9]} 23. f5 {[%clk 0:00:30.4]} 23... Nd8 {[%clk 0:00:39.8]} 24.
Nb1 {[%clk 0:00:17.5]} 24... Nb7 {[%clk 0:00:37]} 25. g4 {[%clk 0:00:13.6]}
25... f6 {[%clk 0:00:33.7]} 26. Ng3 {[%clk 0:00:10.9]} 26... Bf8 {[%clk
0:00:32.9]} 27. Bc5 {[%clk 0:00:09.6]} 27... Red8 {[%clk 0:00:30.2]} 28. Bf1
{[%clk 0:00:07.4]} 28... Bf7 {[%clk 0:00:24.7]} 29. Rdc2 {[%clk 0:00:03.8]}
29... Bh6 {[%clk 0:00:23.3]} 30. Rd1 {[%clk 0:00:02.6]} 30... Nbxc5 {[%clk
0:00:21.5]} 0-1

[Event "Late-Titled-Tuesday-Blitz-September-19-2023"]
[Site "Chess.com"]
[Date "2023.09.19"]
[Round "5"]
[White "MFatigue"]
[Black "oskariot"]
[Result "0-1"]
[WhiteElo "2563"]
[BlackElo "2730"]
[TimeControl "180+1"]
[EndTime "14:53:54 PDT"]
[Termination "oskariot won by resignation"]

1. e4 {[%clk 0:03:00.9]} 1... c5 {[%clk 0:02:57.4]} 2. a3 {[%clk 0:03:01.3]}
2... Na6 {[%clk 0:02:55.2]} 3. b4 {[%clk 0:02:59.2]} 3... cxb4 {[%clk
0:02:51.7]} 4. axb4 {[%clk 0:03:00.1]} 4... Nc7 {[%clk 0:02:51.8]} 5. Nf3 {[%clk
0:02:54.6]} 5... d5 {[%clk 0:02:51.3]} 6. exd5 {[%clk 0:02:52.4]} 6... Nxd5
{[%clk 0:02:51.5]} 7. b5 {[%clk 0:02:50.4]} 7... Ngf6 {[%clk 0:02:50.8]} 8. c4
{[%clk 0:02:48]} 8... Nb6 {[%clk 0:02:37.1]} 9. d4 {[%clk 0:02:45.6]} 9... g6
{[%clk 0:02:28.9]} 10. Bb2 {[%clk 0:02:43.2]} 10... Bg7 {[%clk 0:02:29]} 11. Be2
{[%clk 0:02:43.9]} 11... O-O {[%clk 0:02:28.9]} 12. O-O {[%clk 0:02:44.6]} 12...
Bg4 {[%clk 0:02:28.2]} 13. h3 {[%clk 0:02:44.1]} 13... Bxf3 {[%clk 0:02:23.5]}
14. Bxf3 {[%clk 0:02:32.8]} 14... Nxc4 {[%clk 0:02:23.6]} 15. Bc3 {[%clk
0:02:19.9]} 15... Nd5 {[%clk 0:02:20.8]} 16. Qb3 {[%clk 0:02:20.6]} 16... Ncb6
{[%clk 0:02:19.3]} 17. Bb2 {[%clk 0:02:18.9]} 17... e6 {[%clk 0:02:18.8]} 18.
Nc3 {[%clk 0:02:18.4]} 18... Nxc3 {[%clk 0:02:07.6]} 19. Bxc3 {[%clk 0:02:10.1]}
19... Nd5 {[%clk 0:02:06.8]} 20. Bb2 {[%clk 0:02:08.3]} 20... Qd7 {[%clk
0:01:58.9]} 21. Rfc1 {[%clk 0:02:08.2]} 21... Rfd8 {[%clk 0:01:39.3]} 22. Rc5
{[%clk 0:01:31.9]} 22... Ne7 {[%clk 0:01:23.4]} 23. Rac1 {[%clk 0:01:06.8]}
23... Rac8 {[%clk 0:01:23.4]} 24. Qb4 {[%clk 0:00:55.1]} 24... Nf5 {[%clk
0:01:00.9]} 25. b6 {[%clk 0:00:25.3]} 25... axb6 {[%clk 0:00:56]} 26. Qxb6
{[%clk 0:00:26.2]} 26... Bxd4 {[%clk 0:00:54.6]} 27. Bxd4 {[%clk 0:00:25]} 27...
Qxd4 {[%clk 0:00:54.6]} 28. Bxb7 {[%clk 0:00:20.6]} 28... Rxc5 {[%clk
0:00:53.7]} 29. Qxc5 {[%clk 0:00:21.5]} 29... Qf4 {[%clk 0:00:42.6]} 30. Ba6
{[%clk 0:00:13.3]} 30... h5 {[%clk 0:00:38.6]} 31. Bf1 {[%clk 0:00:13.8]} 31...
Rd2 {[%clk 0:00:35.6]} 32. Rc4 {[%clk 0:00:09.9]} 32... Nd4 {[%clk 0:00:27.6]}
33. Qc8+ {[%clk 0:00:03.8]} 33... Kg7 {[%clk 0:00:27.5]} 34. f3 {[%clk 0:00:04]}
34... Nxf3+ {[%clk 0:00:24.5]} 0-1

[Event "Late-Titled-Tuesday-Blitz-September-19-2023"]
[Site "Chess.com"]
[Date "2023.09.19"]
[Round "5"]
[White "Gogolev_Artemy"]
[Black "Dubs123"]
[Result "0-1"]
[WhiteElo "2391"]
[BlackElo "2315"]
[TimeControl "180+1"]
[EndTime "14:53:56 PDT"]
[Termination "Dubs123 won by resignation"]

1. d4 {[%clk 0:02:57.2]} 1... Nf6 {[%clk 0:02:26.6]} 2. c4 {[%clk 0:02:56.5]}
2... e6 {[%clk 0:02:23.4]} 3. Nc3 {[%clk 0:02:50.1]} 3... Bb4 {[%clk 0:02:22]}
4. e3 {[%clk 0:02:50.4]} 4... O-O {[%clk 0:02:20.3]} 5. Bd3 {[%clk 0:02:49.4]}
5... b6 {[%clk 0:02:19.8]} 6. Ne2 {[%clk 0:02:45.2]} 6... Bb7 {[%clk 0:02:18.7]}
7. f3 {[%clk 0:02:44.9]} 7... d5 {[%clk 0:02:18.3]} 8. cxd5 {[%clk 0:02:39.1]}
8... exd5 {[%clk 0:02:15.4]} 9. O-O {[%clk 0:02:39.1]} 9... c5 {[%clk
0:02:13.5]} 10. a3 {[%clk 0:02:37.9]} 10... Ba5 {[%clk 0:02:11.9]} 11. Bd2
{[%clk 0:02:10.1]} 11... Nbd7 {[%clk 0:02:03.6]} 12. Be1 {[%clk 0:02:09.3]}
12... Re8 {[%clk 0:01:59.6]} 13. Bf2 {[%clk 0:02:08.8]} 13... Rc8 {[%clk
0:01:55.4]} 14. Rc1 {[%clk 0:02:08.6]} 14... Qe7 {[%clk 0:01:46]} 15. Bb1 {[%clk
0:02:05.1]} 15... cxd4 {[%clk 0:01:40.8]} 16. Nxd4 {[%clk 0:02:04.2]} 16... Bxc3
{[%clk 0:01:40.3]} 17. bxc3 {[%clk 0:01:23.9]} 17... Qxa3 {[%clk 0:01:38.8]} 18.
Nb5 {[%clk 0:01:12.8]} 18... Qc5 {[%clk 0:01:35]} 19. c4 {[%clk 0:01:12.5]}
19... a6 {[%clk 0:01:25.7]} 20. e4 {[%clk 0:00:56.7]} 20... Qf8 {[%clk
0:01:14.9]} 21. Nd4 {[%clk 0:00:49.6]} 21... dxe4 {[%clk 0:01:14.7]} 22. fxe4
{[%clk 0:00:45.2]} 22... Bxe4 {[%clk 0:01:00.6]} 23. Nf5 {[%clk 0:00:40.4]}
23... Bxf5 {[%clk 0:00:52.2]} 24. Bxf5 {[%clk 0:00:40.2]} 24... Rcd8 {[%clk
0:00:52.6]} 25. Qf3 {[%clk 0:00:28]} 25... Nc5 {[%clk 0:00:47.7]} 26. Bh4 {[%clk
0:00:24.3]} 26... Rd6 {[%clk 0:00:43.9]} 27. Qg3 {[%clk 0:00:20.4]} 27... Nfe4
{[%clk 0:00:40.2]} 28. Qf3 {[%clk 0:00:20.7]} 28... Nd2 {[%clk 0:00:37.8]} 29.
Qg3 {[%clk 0:00:12.7]} 29... Nxf1 {[%clk 0:00:36.3]} 30. Rxf1 {[%clk 0:00:13.6]}
30... g6 {[%clk 0:00:30.6]} 31. Bb1 {[%clk 0:00:11.5]} 31... Rde6 {[%clk
0:00:25]} 32. Bf6 {[%clk 0:00:09.5]} 32... Qd6 {[%clk 0:00:22.2]} 33. Bb2 {[%clk
0:00:08.6]} 33... Qxg3 {[%clk 0:00:21.5]} 34. hxg3 {[%clk 0:00:08.7]} 0-1